fUST/lending_fUST_20250126
["ID","MTS","AMOUNT","RATE_DAILY","PERIOD"]
[350419942,1737857448072,-644.94,0.00016712,2]
[350419943,1737857448081,-500.0,0.00016712,2]
[350419944,1737857448090,-531.94,0.00016712,2]
[350419945,1737857448101,-2652.58,0.00016712,2]
[350419946,1737857448110,-500.0,0.00016712,2]
[350419947,1737857448119,-753.95,0.00016712,2]
[350419948,1737857448129,-547.59,0.00016712,2]
[350419949,1737857448140,-714.69,0.00016712,2]
[350419950,1737857448149,-6322.36,0.00016712,2]
[350419951,1737857448159,-182.73674188,0.00016762,7]
[350419952,1737857448168,-500.0,0.000168,2]
[350419953,1737857448178,-181.345569,0.000168,2]
[350419954,1737857448187,-181.34557522,0.000168,2]
[350419955,1737857448196,-20968.80530928,0.00016848,5]
[350419956,1737857448214,-8954.65980426,0.00016849,5]
[350419958,1737857529927,248.5777212,0.00013699,2]
[350419959,1737857546996,40115.7269451,0.00024,120]
[350419961,1737857824448,400.0,0.00013973,2]
[350419962,1737858201960,285.934,0.00014923,2]
[350419963,1737858210155,285.934,0.00014923,2]
[350419964,1737858218299,150.54095863,0.00014949,2]
[350419965,1737858226230,150.54095863,0.00014949,2]
[350419966,1737858234899,150.54095863,0.00014949,2]
[350419967,1737858242819,150.54095863,0.00014949,2]
[350419968,1737858258277,150.54095863,0.00014949,2]
[350419969,1737858274716,150.54095863,0.00014949,2]
[350419970,1737858290260,150.54095863,0.00014949,2]
[350419971,1737858306402,150.54095863,0.00014949,2]
[350419972,1737858322287,150.54095863,0.00014949,2]
[350419973,1737858338107,150.54095863,0.00014949,2]
[350419978,1737858354286,150.54095863,0.00014949,2]
[350419979,1737858369624,150.54095863,0.00014949,2]
[350419980,1737858385736,150.54095863,0.00014949,2]
[350419981,1737858401165,150.54095863,0.00014949,2]
[350419982,1737858416916,150.54095863,0.00014949,2]
[350419983,1737858432387,150.54095863,0.00014949,2]
[350419984,1737858448848,150.54095863,0.00014949,2]
[350419985,1737858464250,150.54095863,0.00014949,2]
[350419986,1737858480090,150.54095863,0.00014949,2]
[350419987,1737858495452,150.54095863,0.00014949,2]
[350419994,1737858510919,150.54095863,0.00014949,2]
[350419997,1737858526405,150.54095863,0.00014949,2]
[350419999,1737858542379,150.54095863,0.00014949,2]
[350420000,1737858558315,150.54095863,0.00014949,2]
[350420001,1737858574812,150.54095863,0.00014949,2]
[350420009,1737858590891,150.54095863,0.00014949,2]
[350420010,1737858606898,150.54095863,0.00014949,2]
[350420011,1737858622822,150.54095863,0.00014949,2]
[350420046,1737858632501,-150.54095863,0.000151,2]
[350420047,1737858632511,-194.4270295,0.00015444,2]
[350420048,1737858632520,-285.934,0.0001601,2]
[350420049,1737858632530,-1592.78706328,0.0001627,7]
[350420050,1737858632540,-300.0,0.00016437,2]
[350420051,1737858632550,-151.0,0.00016438,2]
[350420052,1737858632559,-151.0,0.00016438,2]
[350420053,1737858632569,-151.0,0.00016438,2]
[350420054,1737858632578,-151.0,0.00016438,2]
[350420055,1737858632587,-501.50141218,0.00016438,2]
[350420056,1737858632596,-504.87778774,0.00016438,2]
[350420057,1737858632606,-500.0,0.00016438,2]
[350420058,1737858632615,-500.0,0.00016438,2]
[350420059,1737858632626,-500.0,0.00016438,2]
[350420060,1737858632634,-500.0,0.00016438,2]
[350420061,1737858632643,-279.77798125,0.00016438,2]
[350420062,1737858632652,-500.0,0.00016438,2]
[350420063,1737858632661,-183.06964258,0.00016438,2]
[350420064,1737858632672,-316.93035742,0.00016438,2]
[350420065,1737858632681,-500.0,0.00016438,2]
[350420066,1737858632690,-88.72364258,0.00016438,2]
[350420110,1737858638331,-831.2449205,0.00016175,2]
[350420112,1737858638340,-831.2449205,0.00016338,2]
[350420114,1737858638350,-1596.97635742,0.00016438,2]
[350420116,1737858638359,-270.60441864,0.00016438,2]
[350420118,1737858638368,-1107.89,0.00016438,2]
[350420120,1737858638377,-500.0,0.00016438,2]
[350420122,1737858638387,-500.0,0.00016438,2]
[350420124,1737858638397,-500.0,0.00016438,2]
[350420126,1737858638409,-3326.73631101,0.00016438,2]
[350420129,1737858638432,-528.78757581,0.00016438,2]
[350420252,1737858643602,-63.06611318,0.00016438,2]
[350420253,1737858643612,-500.0,0.00016438,2]
[350420254,1737858643621,-93.68495964,0.00016438,2]
[350420271,1737858644134,-420.85201663,0.00016438,2]
[350420281,1737858646328,-624.86302373,0.00016438,2]
[350420282,1737858646338,-544.28,0.00016438,2]
[350420283,1737858646347,-1768.58,0.00016438,2]
[350420284,1737858646357,-500.0,0.00016438,2]
[350420285,1737858646366,-564.32,0.00016438,2]
[350420286,1737858646375,-500.0,0.00016438,2]
[350420287,1737858646384,-698.78,0.00016438,2]
[350420288,1737858646393,-729.76,0.00016438,2]
[350420289,1737858646404,-2321.0,0.00016438,2]
[350420290,1737858646414,-500.0,0.00016438,2]
[350420291,1737858646423,-500.0,0.00016438,2]
[350420292,1737858646432,-500.0,0.00016438,2]
[350420293,1737858646442,-659.71,0.00016438,2]
[350420294,1737858646452,-500.0,0.00016438,2]
[350420295,1737858646461,-5532.06,0.00016438,2]
[350420296,1737858646470,-625.35,0.00016438,2]
[350420297,1737858646479,-500.0,0.00016438,2]
[350420298,1737858646489,-500.0,0.00016438,2]
[350420299,1737858646498,-7083.4458511,0.00016438,2]
[350420300,1737858646507,-934.04835723,0.00016462,2]
[350420301,1737858646516,-200.52123021,0.00016475,2]
[350420302,1737858646526,-500.0,0.00016575,2]
[350420303,1737858646535,-500.0,0.00016575,2]
[350420304,1737858646544,-500.0,0.00016575,2]
[350420305,1737858646553,-500.0,0.00016575,2]
[350420306,1737858646562,-500.0,0.00016575,2]
[350420307,1737858646572,-500.0,0.00016575,2]
[350420308,1737858646582,-329.13005682,0.00016575,2]
[350420309,1737858646591,-1685.7,0.00016575,2]
[350420310,1737858646600,-1107.89,0.00016575,2]
[350420311,1737858646609,-500.0,0.00016575,2]
[350420312,1737858646620,-500.0,0.00016575,2]
[350420313,1737858646629,-537.36121429,0.00016575,2]
[350420314,1737858646639,-3918.59,0.00016575,2]
[350420315,1737858646648,-500.0,0.00016575,2]
[350420316,1737858646657,-1139.4,0.00016575,2]
[350420317,1737858646667,-544.28,0.00016575,2]
[350420318,1737858646676,-1768.58,0.00016575,2]
[350420319,1737858646685,-500.0,0.00016575,2]
[350420320,1737858646694,-564.32,0.00016575,2]
[350420321,1737858646703,-500.0,0.00016575,2]
[350420322,1737858646713,-698.78,0.00016575,2]
[350420323,1737858646722,-729.76,0.00016575,2]
[350420324,1737858646731,-2321.0,0.00016575,2]
[350420325,1737858646740,-500.0,0.00016575,2]
[350420326,1737858646749,-500.0,0.00016575,2]
[350420327,1737858646758,-500.0,0.00016575,2]
[350420328,1737858646767,-659.71,0.00016575,2]
[350420329,1737858646776,-500.0,0.00016575,2]
[350420330,1737858646786,-5532.06,0.00016575,2]
[350420331,1737858646795,-625.35,0.00016575,2]
[350420332,1737858646803,-500.0,0.00016575,2]
[350420333,1737858646812,-306.25831206,0.00016575,2]
[350420334,1737858646822,-536.0,0.00016584,2]
[350420335,1737858646830,-2057.0,0.00016584,2]
[350420336,1737858646839,-2305.0,0.00016584,2]
[350420337,1737858646848,-354.0685108,0.000167,2]
[350420338,1737858646858,-1272.243,0.00016712,2]
[350420339,1737858646868,-159.12092268,0.00016712,2]
[350420340,1737858646879,-500.0,0.00016712,2]
[350420341,1737858646888,-500.0,0.00016712,2]
[350420342,1737858646897,-633.73842444,0.00016712,2]
[350420343,1737858646906,-500.0,0.00016712,2]
[350420344,1737858646916,-500.0,0.00016712,2]
[350420345,1737858646925,-500.0,0.00016712,2]
[350420346,1737858646934,-1685.7,0.00016712,2]
[350420347,1737858646943,-1107.89,0.00016712,2]
[350420348,1737858646952,-500.0,0.00016712,2]
[350420349,1737858646962,-500.0,0.00016712,2]
[350420350,1737858646971,-3918.59,0.00016712,2]
[350420351,1737858646981,-500.0,0.00016712,2]
[350420352,1737858646990,-1139.4,0.00016712,2]
[350420353,1737858647000,-544.28,0.00016712,2]
[350420354,1737858647009,-1768.58,0.00016712,2]
[350420355,1737858647019,-500.0,0.00016712,2]
[350420356,1737858647028,-564.32,0.00016712,2]
[350420357,1737858647037,-500.0,0.00016712,2]
[350420358,1737858647047,-326.88862076,0.00016712,2]
[350420359,1737858647059,-371.89137924,0.00016712,2]
[350420360,1737858647068,-729.76,0.00016712,2]
[350420361,1737858647078,-2321.0,0.00016712,2]
[350420362,1737858647087,-500.0,0.00016712,2]
[350420363,1737858647097,-500.0,0.00016712,2]
[350420364,1737858647106,-500.0,0.00016712,2]
[350420365,1737858647115,-659.71,0.00016712,2]
[350420366,1737858647124,-500.0,0.00016712,2]
[350420367,1737858647134,-4607.67027068,0.00016712,2]
[350420372,1737858988683,400.0,0.00013973,2]
[350420373,1737859019363,1007.37,0.00022,30]
[350420374,1737859052523,200.0,0.00024,120]
[350420375,1737859156929,200.0,0.00024,120]
[350420376,1737859291353,150.05,0.00024,120]
[350420377,1737859408500,197.04129189,0.00014996,2]
[350420378,1737859424402,197.04129189,0.00014996,2]
[350420380,1737859440865,197.04129189,0.00014996,2]
[350420381,1737859456788,197.04129189,0.00014996,2]
[350420382,1737859472710,197.04129189,0.00014996,2]
[350420383,1737859642627,280.62380415,0.00015048,2]
[350420391,1737859717470,205.6261523,0.00014735,2]
[350420435,1737859832811,-197.04129189,0.00015148,2]
[350420437,1737859832822,-104.95870811,0.00015148,2]
[350420458,1737859833014,-107.92711518,0.00015148,2]
[350420460,1737859833027,-1805.8817516,0.00015409,2]
[350420462,1737859833039,-300.0,0.00015462,2]
[350420465,1737859833052,-15342.2316286,0.00015463,2]
[350420467,1737859833065,-24900.0,0.00015559,2]
[350420469,1737859833078,-727.33930542,0.0001591,2]
[350420472,1737859833090,-290.73,0.0001601,2]
[350420474,1737859833102,-500.0,0.00016438,2]
[350420476,1737859833116,-416.7259146,0.00016438,2]
[350420479,1737859833128,-502.82426277,0.00016438,2]
[350420481,1737859833140,-505.26207644,0.00016438,2]
[350420483,1737859833154,-503.27764944,0.00016438,2]
[350420486,1737859833167,-500.0,0.00016438,2]
[350420488,1737859833180,-286.06740376,0.00016438,2]
[350420489,1737859833203,-213.93259624,0.00016438,2]
[350420490,1737859833213,-500.0,0.00016438,2]
[350420491,1737859833224,-1474.99,0.00016438,2]
[350420492,1737859833234,-296.5328525,0.00016438,2]
[350420493,1737859833244,-3428.76,0.00016438,2]
[350420494,1737859833261,-969.41,0.00016438,2]
[350420495,1737859833272,-500.0,0.00016438,2]
[350420496,1737859833284,-56.95420019,0.00016438,2]
[350420497,1737859833298,-279.83021472,0.00016438,2]
[350420499,1737859838479,-163.21558509,0.00016438,2]
[350420500,1737859838488,-522.82,0.00016438,2]
[350420501,1737859838497,-500.0,0.00016438,2]
[350420502,1737859838506,-1547.51,0.00016438,2]
[350420503,1737859838515,-500.0,0.00016438,2]
[350420504,1737859838524,-996.97,0.00016438,2]
[350420505,1737859838534,-4879.07,0.00016438,2]
[350420506,1737859838544,-638.54,0.00016438,2]
[350420507,1737859838553,-500.0,0.00016438,2]
[350420508,1737859838563,-611.43,0.00016438,2]
[350420509,1737859838572,-500.0,0.00016438,2]
[350420510,1737859838582,-500.0,0.00016438,2]
[350420511,1737859838591,-2051.74,0.00016438,2]
[350420512,1737859838600,-500.0,0.00016438,2]
[350420513,1737859838611,-500.0,0.00016438,2]
[350420514,1737859838620,-500.0,0.00016438,2]
[350420516,1737859838629,-500.0,0.00016438,2]
[350420517,1737859838639,-577.24,0.00016438,2]
[350420518,1737859838648,-500.0,0.00016438,2]
[350420519,1737859838657,-573.24,0.00016438,2]
[350420520,1737859838666,-508.02380568,0.00016438,2]
[350420521,1737859838675,-705.5247658,0.000165,2]
[350420522,1737859838684,-500.0,0.00016575,2]
[350420523,1737859838694,-500.0,0.00016575,2]
[350420524,1737859838703,-500.0,0.00016575,2]
[350420525,1737859838712,-500.0,0.00016575,2]
[350420526,1737859838721,-1474.99,0.00016575,2]
[350420527,1737859838730,-3428.76,0.00016575,2]
[350420528,1737859838739,-969.41,0.00016575,2]
[350420529,1737859838748,-500.0,0.00016575,2]
[350420530,1737859838757,-500.0,0.00016575,2]
[350420531,1737859838766,-522.82,0.00016575,2]
[350420532,1737859838774,-500.0,0.00016575,2]
[350420533,1737859838783,-1547.51,0.00016575,2]
[350420534,1737859838792,-500.0,0.00016575,2]
[350420535,1737859838801,-996.97,0.00016575,2]
[350420536,1737859838810,-4879.07,0.00016575,2]
[350420537,1737859838819,-638.54,0.00016575,2]
[350420538,1737859838828,-500.0,0.00016575,2]
[350420539,1737859838837,-611.43,0.00016575,2]
[350420540,1737859838847,-500.0,0.00016575,2]
[350420541,1737859838858,-500.0,0.00016575,2]
[350420542,1737859838867,-2051.74,0.00016575,2]
[350420543,1737859838876,-500.0,0.00016575,2]
[350420544,1737859838885,-500.0,0.00016575,2]
[350420545,1737859838894,-500.0,0.00016575,2]
[350420546,1737859838903,-500.0,0.00016575,2]
[350420547,1737859838913,-577.24,0.00016575,2]
[350420548,1737859838922,-573.24,0.00016575,2]
[350420549,1737859838931,-512.75317175,0.0001661,2]
[350420550,1737859838940,-1160.27375646,0.0001661,2]
[350420551,1737859838950,-531.56870647,0.0001661,2]
[350420552,1737859838959,-1160.27375646,0.0001661,2]
[350420553,1737859838968,-500.0,0.0001661,2]
[350420554,1737859838978,-1160.27375646,0.0001661,2]
[350420555,1737859838987,-571.38224544,0.0001661,2]
[350420556,1737859838996,-500.0,0.0001661,2]
[350420557,1737859839005,-1160.27375646,0.0001661,2]
[350420558,1737859839014,-1160.27375646,0.0001661,2]
[350420559,1737859839024,-500.0,0.0001661,2]
[350420560,1737859839034,-1160.27375646,0.0001661,2]
[350420561,1737859839043,-1160.27375646,0.0001661,2]
[350420562,1737859839052,-500.0,0.0001661,2]
[350420563,1737859839061,-1160.27375646,0.0001661,2]
[350420564,1737859839071,-500.0,0.0001661,2]
[350420565,1737859839080,-1160.27375646,0.0001661,2]
[350420566,1737859839089,-1160.27375646,0.0001661,2]
[350420567,1737859839098,-1160.27375646,0.0001661,2]
[350420568,1737859839109,-1160.27375646,0.0001661,2]
[350420569,1737859839119,-1160.27375646,0.0001661,2]
[350420570,1737859839128,-1160.27375646,0.0001661,2]
[350420571,1737859839138,-1160.27375646,0.0001661,2]
[350420572,1737859839147,-1160.27375646,0.0001661,2]
[350420573,1737859839156,-1160.27375646,0.0001661,2]
[350420574,1737859839166,-1160.27375646,0.0001661,2]
[350420576,1737859839175,-1160.27375646,0.0001661,2]
[350420578,1737859839184,-1160.27375646,0.0001661,2]
[350420580,1737859839193,-1160.27375646,0.0001661,2]
[350420581,1737859839202,-1160.27375646,0.0001661,2]
[350420582,1737859839211,-1160.27375646,0.0001661,2]
[350420583,1737859839221,-1160.27375646,0.0001661,2]
[350420584,1737859839230,-1160.27375646,0.0001661,2]
[350420585,1737859839239,-1160.27375646,0.0001661,2]
[350420586,1737859839248,-1160.27375646,0.0001661,2]
[350420587,1737859839257,-1160.27375646,0.0001661,2]
[350420588,1737859839266,-1160.27375646,0.0001661,2]
[350420589,1737859839276,-1160.27375646,0.0001661,2]
[350420590,1737859839285,-1160.27375646,0.0001661,2]
[350420591,1737859839297,-726.12808012,0.0001661,2]
[350420680,1737859843744,-434.14567634,0.0001661,2]
[350420681,1737859843754,-216.85432366,0.0001661,2]
[350420730,1737859846524,-346.94028826,0.0001661,2]
[350420731,1737859846536,-596.47914454,0.0001661,2]
[350420732,1737859846545,-297.76371246,0.0001661,2]
[350420733,1737859846576,-862.510044,0.0001661,2]
[350420734,1737859846586,-1160.27375646,0.0001661,2]
[350420735,1737859846596,-1160.27375646,0.0001661,2]
[350420736,1737859846605,-1160.27375646,0.0001661,2]
[350420737,1737859846617,-1160.27375646,0.0001661,2]
[350420738,1737859846627,-1160.27375646,0.0001661,2]
[350420739,1737859846636,-1160.27375646,0.0001661,2]
[350420740,1737859846645,-1160.27375646,0.0001661,2]
[350420741,1737859846654,-1160.27375646,0.0001661,2]
[350420742,1737859846664,-1160.27375646,0.0001661,2]
[350420743,1737859846674,-1160.27375646,0.0001661,2]
[350420744,1737859846684,-1157.82348038,0.0001661,2]
[350420745,1737859846696,-2.45027608,0.0001661,2]
[350420746,1737859846706,-1160.27375646,0.0001661,2]
[350420747,1737859846715,-1160.27375646,0.0001661,2]
[350420748,1737859846724,-1160.27375646,0.0001661,2]
[350420749,1737859846734,-1160.27375646,0.0001661,2]
[350420750,1737859846742,-150.248,0.00016611,2]
[350420751,1737859846751,-536.0,0.00016611,2]
[350420752,1737859846760,-2057.0,0.00016611,2]
[350420753,1737859846769,-858.27509901,0.00016611,2]
[350420754,1737859846781,-1446.72490099,0.00016611,2]
[350420755,1737859846790,-395.0,0.00016611,2]
[350420756,1737859846799,-150.221,0.00016611,2]
[350420757,1737859846808,-504.48501096,0.00016673,2]
[350420758,1737859846817,-412.32205462,0.00016673,2]
[350420759,1737859846826,-500.0,0.00016673,2]
[350420760,1737859846836,-179.20361414,0.00016697,2]
[350420761,1737859846845,-500.0,0.00016697,2]
[350420762,1737859846858,-583.10524661,0.00016697,2]
[350420763,1737859846871,-11174.6298837,0.00016697,5]
[350420764,1737859846879,-1987.21224963,0.00016697,5]
[350420765,1737859846917,-7454.5588698,0.00016697,5]
[350420766,1737860007961,3000.0,0.00022,30]
[350420767,1737860035644,9328.59576722,0.00022,30]
[350420768,1737860095345,400.0,0.00013973,2]
[350420769,1737860142257,189.282432,0.00013699,2]
[350420770,1737860291902,161.222481,0.00022,30]
[350420771,1737860408934,939.0,0.00024,120]
[350420774,1737860764108,776.48,0.00010959,2]
[350420775,1737860777835,-2476.69539423,0.000154,2]
[350420776,1737860777858,-2476.69539419,0.00015441,2]
[350420777,1737860777880,-202.8387759,0.00015445,2]
[350420778,1737860777903,-2476.69539419,0.00015482,2]
[350420779,1737860777925,-150.24525927,0.000155,2]
[350420780,1737860777947,-2476.69539419,0.00015523,2]
[350420781,1737860777970,-2476.69539419,0.00015564,2]
[350420782,1737860777992,-2476.69539419,0.00015605,2]
[350420783,1737860778016,-294.904,0.0001601,2]
[350420784,1737860778040,-211.13673146,0.0001601,2]
[350420785,1737860778064,-10938.46183397,0.00016235,2]
[350420786,1737860778088,-176.97980051,0.00016337,2]
[350420787,1737860778111,-176.9798005,0.00016406,2]
[350420788,1737860778138,-500.0,0.00016437,2]
[350420789,1737860778168,-500.0,0.00016437,2]
[350420790,1737860778197,-500.0,0.00016437,2]
[350420791,1737860778225,-500.0,0.00016437,2]
[350420792,1737860778249,-641.30352216,0.00016437,2]
[350420793,1737860778277,-500.0,0.00016437,2]
[350420794,1737860778307,-500.0,0.00016437,2]
[350420795,1737860778334,-500.0,0.00016437,2]
[350420796,1737860778362,-500.0,0.00016437,2]
[350420797,1737860778389,-500.0,0.00016437,2]
[350420798,1737860778421,-500.0,0.00016437,2]
[350420799,1737860778464,-500.0,0.00016437,2]
[350420800,1737860778492,-500.0,0.00016437,2]
[350420801,1737860778519,-500.0,0.00016437,2]
[350420802,1737860778547,-500.0,0.00016437,2]
[350420803,1737860778575,-500.0,0.00016437,2]
[350420804,1737860778602,-500.0,0.00016437,2]
[350420805,1737860778629,-500.0,0.00016437,2]
[350420806,1737860778655,-500.0,0.00016437,2]
[350420807,1737860778682,-500.0,0.00016437,2]
[350420808,1737860778710,-500.0,0.00016437,2]
[350420809,1737860778736,-500.0,0.00016437,2]
[350420810,1737860778763,-500.0,0.00016437,2]
[350420811,1737860778790,-500.0,0.00016437,2]
[350420812,1737860778816,-500.0,0.00016437,2]
[350420813,1737860778843,-500.0,0.00016437,2]
[350420814,1737860778869,-500.0,0.00016437,2]
[350420815,1737860778895,-500.0,0.00016437,2]
[350420816,1737860778923,-500.0,0.00016437,2]
[350420817,1737860778951,-500.0,0.00016437,2]
[350420818,1737860778978,-500.0,0.00016437,2]
[350420819,1737860779005,-500.0,0.00016437,2]
[350420820,1737860779031,-500.0,0.00016437,2]
[350420821,1737860779058,-500.0,0.00016437,2]
[350420822,1737860779084,-500.0,0.00016437,2]
[350420823,1737860779111,-500.0,0.00016437,2]
[350420824,1737860779140,-500.0,0.00016437,2]
[350420825,1737860779169,-500.0,0.00016437,2]
[350420826,1737860779198,-500.0,0.00016437,2]
[350420827,1737860779229,-500.0,0.00016437,2]
[350420828,1737860779257,-500.0,0.00016437,2]
[350420829,1737860779285,-500.0,0.00016437,2]
[350420830,1737860779313,-500.0,0.00016437,2]
[350420831,1737860779341,-500.0,0.00016437,2]
[350420832,1737860779368,-500.0,0.00016437,2]
[350420833,1737860779501,-500.0,0.00016437,2]
[350420834,1737860779535,-500.0,0.00016437,2]
[350420835,1737860779562,-500.0,0.00016437,2]
[350420836,1737860779589,-500.0,0.00016437,2]
[350420837,1737860779614,-500.0,0.00016437,2]
[350420838,1737860779641,-500.0,0.00016437,2]
[350420839,1737860779667,-500.0,0.00016437,2]
[350420840,1737860779692,-500.0,0.00016437,2]
[350420841,1737860779719,-194.16830491,0.00016437,2]
[350420842,1737860779745,-500.0,0.00016437,2]
[350420843,1737860779771,-500.0,0.00016437,2]
[350420844,1737860779798,-500.0,0.00016437,2]
[350420845,1737860779824,-500.0,0.00016437,2]
[350420846,1737860779850,-500.0,0.00016437,2]
[350420847,1737860779877,-500.0,0.00016437,2]
[350420848,1737860779904,-500.0,0.00016437,2]
[350420849,1737860779933,-500.0,0.00016437,2]
[350420850,1737860779960,-500.0,0.00016437,2]
[350420851,1737860779986,-500.0,0.00016437,2]
[350420852,1737860780015,-1247.07438036,0.00016437,2]
[350420853,1737860780042,-1247.07438036,0.00016437,2]
[350420854,1737860780069,-1247.07438036,0.00016437,2]
[350420855,1737860780095,-1247.07438036,0.00016437,2]
[350420856,1737860780124,-1247.07438036,0.00016437,2]
[350420857,1737860780159,-1247.07438036,0.00016437,2]
[350420858,1737860780187,-1247.07438036,0.00016437,2]
[350420859,1737860780214,-1247.07438036,0.00016437,2]
[350420860,1737860780242,-1247.07438036,0.00016437,2]
[350420861,1737860780268,-1247.07438036,0.00016437,2]
[350420862,1737860780294,-1247.07438036,0.00016437,2]
[350420863,1737860780322,-1247.07438036,0.00016437,2]
[350420864,1737860780349,-1247.07438036,0.00016437,2]
[350420865,1737860780376,-1247.07438036,0.00016437,2]
[350420866,1737860780403,-1247.07438036,0.00016437,2]
[350420867,1737860780430,-1247.07438036,0.00016437,2]
[350420868,1737860780457,-1247.07438036,0.00016437,2]
[350420869,1737860780484,-1247.07438036,0.00016437,2]
[350420870,1737860780512,-1247.07438036,0.00016437,2]
[350420871,1737860780538,-1247.07438036,0.00016437,2]
[350420872,1737860780566,-1247.07438036,0.00016437,2]
[350420873,1737860780592,-1247.07438036,0.00016437,2]
[350420874,1737860780618,-1247.07438036,0.00016437,2]
[350420875,1737860780644,-1247.07438036,0.00016437,2]
[350420876,1737860780671,-1247.07438036,0.00016437,2]
[350420877,1737860780699,-1247.07438036,0.00016437,2]
[350420878,1737860780725,-1247.07438029,0.00016437,2]
[350420879,1737860780750,-500.0,0.00016437,2]
[350420880,1737860780773,-337.38592476,0.00016437,2]
[350420881,1737860780797,-500.0,0.00016438,2]
[350420882,1737860780821,-500.0,0.00016438,2]
[350420883,1737860780845,-370.14361121,0.00016438,2]
[350420884,1737860780869,-500.0,0.00016438,2]
[350420885,1737860780892,-503.00863323,0.00016438,2]
[350420886,1737860780917,-500.0,0.00016438,2]
[350420887,1737860780941,-500.0,0.00016438,2]
[350420888,1737860780965,-500.0,0.00016438,2]
[350420889,1737860780989,-500.0,0.00016438,2]
[350420890,1737860781014,-500.0,0.00016438,2]
[350420891,1737860781037,-500.0,0.00016438,2]
[350420892,1737860781061,-503.34869977,0.00016438,2]
[350420893,1737860781086,-500.0,0.00016438,2]
[350420894,1737860781109,-299.54820353,0.00016438,2]
[350420895,1737860781135,-507.43773227,0.00016438,2]
[350420896,1737860781158,-500.0,0.00016438,2]
[350420897,1737860781184,-500.0,0.00016438,2]
[350420898,1737860781208,-503.06004437,0.00016438,2]
[350420899,1737860781232,-500.0,0.00016438,2]
[350420900,1737860781257,-506.04055063,0.00016438,2]
[350420901,1737860781281,-506.5605499,0.00016438,2]
[350420902,1737860781305,-503.56597283,0.00016438,2]
[350420903,1737860781329,-504.20181855,0.00016438,2]
[350420904,1737860781352,-508.20227806,0.00016438,2]
[350420905,1737860781376,-500.0,0.00016438,2]
[350420906,1737860781399,-500.0,0.00016438,2]
[350420907,1737860781423,-504.07962289,0.00016438,2]
[350420908,1737860781446,-514.98974354,0.00016438,2]
[350420909,1737860781469,-503.91371983,0.00016438,2]
[350420910,1737860781492,-535.01182307,0.00016438,2]
[350420911,1737860781516,-393.36604059,0.00016438,2]
[350420912,1737860781540,-504.94433521,0.00016438,2]
[350420913,1737860781564,-500.0,0.00016438,2]
[350420914,1737860781588,-502.69108418,0.00016438,2]
[350420915,1737860781612,-505.35009791,0.00016438,2]
[350420916,1737860781636,-500.0,0.00016438,2]
[350420917,1737860781660,-913.89,0.00016438,2]
[350420918,1737860781684,-500.0,0.00016438,2]
[350420919,1737860781707,-505.23648896,0.00016438,2]
[350420920,1737860781731,-506.61853417,0.00016438,2]
[350420921,1737860781754,-502.95951397,0.00016438,2]
[350420922,1737860781778,-552.80685326,0.00016438,2]
[350420923,1737860781801,-503.41071772,0.00016438,2]
[350420924,1737860781826,-512.46061343,0.00016438,2]
[350420925,1737860781850,-507.76495853,0.00016438,2]
[350420926,1737860781875,-508.32934745,0.00016438,2]
[350420927,1737860781899,-503.08887126,0.00016438,2]
[350420928,1737860782013,-509.75384204,0.00016438,2]
[350420929,1737860782045,-501.51691685,0.00016438,2]
[350420930,1737860782069,-502.86763393,0.00016438,2]
[350420931,1737860782092,-505.37191104,0.00016438,2]
[350420932,1737860782115,-503.47892815,0.00016438,2]
[350420933,1737860782142,-331.23977011,0.00016438,2]